fUST/lending_fUST_20250625
["ID","MTS","AMOUNT","RATE_DAILY","PERIOD"]
[367569319,1750861848022,-151.0,0.00017101,2]
[367569320,1750861848031,-460.0,0.00017101,2]
[367569321,1750861848041,-6847.14,0.00017101,2]
[367569322,1750861848050,-1607.44,0.00017101,2]
[367569323,1750861848060,-460.0,0.00017101,2]
[367569324,1750861848069,-1318.414088,0.00017101,2]
[367569325,1750861848079,-1318.414088,0.00017101,2]
[367569326,1750861848088,-1017.64,0.00017101,2]
[367569327,1750861848097,-1689.44,0.00017101,2]
[367569328,1750861848107,-1208.83,0.00017101,2]
[367569329,1750861848117,-354.86950478,0.00017101,2]
[367569330,1750861848126,-460.0,0.00017101,2]
[367569331,1750861848135,-460.0,0.00017101,2]
[367569332,1750861848144,-165.68503,0.00017102,2]
[367569333,1750861848154,-165.68503,0.00017102,2]
[367569334,1750861848164,-645.96,0.00017103,2]
[367569335,1750861848174,-460.0,0.00017103,2]
[367569336,1750861848183,-460.0,0.00017103,2]
[367569337,1750861848193,-460.0,0.00017103,2]
[367569338,1750861848203,-460.0,0.00017103,2]
[367569339,1750861848212,-460.0,0.00017103,2]
[367569340,1750861848222,-460.0,0.00017103,2]
[367569341,1750861848231,-460.0,0.00017103,2]
[367569342,1750861848242,-462.32,0.00017103,2]
[367569343,1750861848251,-460.0,0.00017103,2]
[367569344,1750861848261,-151.0,0.00017103,2]
[367569345,1750861848270,-460.0,0.00017103,2]
[367569346,1750861848280,-460.0,0.00017103,2]
[367569347,1750861848289,-460.0,0.00017103,2]
[367569348,1750861848299,-460.0,0.00017103,2]
[367569349,1750861848308,-151.0,0.00017103,2]
[367569350,1750861848317,-151.0,0.00017103,2]
[367569351,1750861848326,-229.88231248,0.00017103,2]
[367569352,1750861848335,-151.0,0.00017103,2]
[367569353,1750861848344,-460.0,0.00017103,2]
[367569354,1750861848354,-460.0,0.00017103,2]
[367569355,1750861848363,-460.0,0.00017103,2]
[367569356,1750861848372,-460.0,0.00017103,2]
[367569357,1750861848382,-460.0,0.00017103,2]
[367569358,1750861848391,-193.38015939,0.00017103,2]
[367569359,1750861848400,-460.0,0.00017103,2]
[367569360,1750861848410,-460.0,0.00017103,2]
[367569361,1750861848420,-460.0,0.00017103,2]
[367569362,1750861848430,-460.0,0.00017103,2]
[367569363,1750861848439,-460.0,0.00017103,2]
[367569364,1750861848449,-460.0,0.00017103,2]
[367569365,1750861848458,-151.0,0.00017103,2]
[367569366,1750861848468,-151.0,0.00017103,2]
[367569367,1750861848477,-151.0,0.00017104,2]
[367569368,1750861848487,-151.0,0.00017104,2]
[367569369,1750861848496,-151.0,0.00017107,2]
[367569370,1750861848505,-151.0,0.00017107,2]
[367569371,1750861848514,-151.0,0.00017107,2]
[367569372,1750861848524,-151.0,0.0001714,2]
[367569373,1750861848532,-384.345501,0.0001714,2]
[367569374,1750861848541,-384.345501,0.0001714,2]
[367569375,1750861848551,-151.0,0.00017142,2]
[367569376,1750861848560,-151.0,0.000172,2]
[367569377,1750861848570,-151.0,0.000172,2]
[367569378,1750861848579,-151.0,0.000172,2]
[367569379,1750861848588,-151.0,0.000172,2]
[367569380,1750861848597,-151.0,0.000172,2]
[367569381,1750861848607,-151.0,0.000172,2]
[367569382,1750861848616,-151.0,0.000172,2]
[367569383,1750861848625,-151.0,0.000172,2]
[367569384,1750861848635,-151.0,0.000172,2]
[367569385,1750861848644,-242.645154,0.000172,2]
[367569386,1750861848653,-242.645154,0.000172,2]
[367569387,1750861848662,-6705.4314701,0.000172,2]
[367569388,1750861848671,-6705.43147003,0.000172,2]
[367569389,1750861848680,-5000.0,0.00017205,2]
[367569390,1750861848690,-151.0,0.00017205,2]
[367569391,1750861848699,-500.0,0.00017216,2]
[367569392,1750861848708,-151.0,0.00017225,2]
[367569393,1750861848717,-1615.17,0.00017271,2]
[367569394,1750861848726,-463.0007302,0.00017271,2]
[367569395,1750861848736,-482.90102481,0.00017271,2]
[367569396,1750861848746,-368.42,0.00017271,2]
[367569397,1750861848755,-361.05313495,0.00017273,2]
[367569398,1750861848765,-248.0,0.00017276,2]
[367569399,1750861848774,-151.0,0.000173,2]
[367569400,1750861848783,-500.0,0.00017308,2]
[367569401,1750861848793,-500.0,0.00017313,2]
[367569402,1750861848805,-500.0,0.00017313,2]
[367569403,1750861848815,-500.0,0.00017313,2]
[367569404,1750861848824,-500.0,0.00017313,2]
[367569405,1750861848833,-377.86166272,0.00017313,2]
[367569406,1750861848842,-500.0,0.00017313,2]
[367569407,1750861848852,-500.0,0.00017313,2]
[367569408,1750861848861,-500.0,0.00017313,2]
[367569409,1750861848872,-224.68595389,0.00017313,2]
[367569410,1750861848881,-500.0,0.00017313,2]
[367569411,1750861848891,-192.0812288,0.00017328,2]
[367569412,1750861848901,-232.72454134,0.00017328,2]
[367569413,1750861848910,-500.0,0.00017328,2]
[367569414,1750861848919,-500.0,0.00017328,2]
[367569415,1750861848929,-614.18597854,0.00017328,2]
[367569416,1750861848939,-160.0,0.0001733,2]
[367569417,1750861848948,-160.0,0.00017331,2]
[367569418,1750861848957,-160.0,0.00017331,2]
[367569419,1750861848966,-524.21181985,0.00017331,2]
[367569420,1750861848975,-160.0,0.00017331,2]
[367569421,1750861848985,-836.86812089,0.00017331,2]
[367569422,1750861848994,-846.80634355,0.00017331,2]
[367569423,1750861849002,-425.18553072,0.00017331,2]
[367569424,1750861849011,-213.69531788,0.00017331,2]
[367569425,1750861849020,-160.0,0.00017331,2]
[367569426,1750861849029,-160.0,0.00017331,2]
[367569427,1750861849038,-12558.06783089,0.00017331,2]
[367569428,1750861849047,-160.0,0.00017331,2]
[367569429,1750861849056,-160.0,0.00017331,2]
[367569430,1750861849065,-230.22714675,0.00017331,2]
[367569431,1750861849074,-500.0,0.00017338,2]
[367569432,1750861849083,-500.0,0.00017338,2]
[367569433,1750861849092,-500.0,0.00017338,2]
[367569434,1750861849100,-500.0,0.00017338,2]
[367569435,1750861849109,-500.0,0.00017338,2]
[367569436,1750861849118,-500.0,0.00017338,2]
[367569437,1750861849127,-151.0,0.00017339,2]
[367569438,1750861849136,-1318.414088,0.00017339,2]
[367569439,1750861849145,-1318.414088,0.00017339,2]
[367569440,1750861849154,-500.0,0.00017343,2]
[367569441,1750861849162,-500.0,0.00017352,2]
[367569442,1750861849171,-174.69466745,0.00017368,2]
[367569443,1750861849179,-500.0,0.00017368,2]
[367569444,1750861849188,-229.1072914,0.00017372,2]
[367569445,1750861849196,-460.0,0.00017372,2]
[367569446,1750861849205,-460.0,0.00017372,2]
[367569447,1750861849213,-460.0,0.00017372,2]
[367569448,1750861849221,-460.0,0.00017372,2]
[367569449,1750861849229,-2966.93,0.00017372,2]
[367569450,1750861849239,-460.0,0.00017372,2]
[367569451,1750861849248,-2654.77,0.00017372,2]
[367569452,1750861849256,-460.0,0.00017372,2]
[367569453,1750861849264,-460.0,0.00017372,2]
[367569454,1750861849273,-1973.41,0.00017372,2]
[367569455,1750861849281,-597.1,0.00017372,2]
[367569456,1750861849289,-1548.17,0.00017372,2]
[367569457,1750861849298,-2257.2,0.00017372,2]
[367569458,1750861849306,-460.0,0.00017372,2]
[367569459,1750861849314,-936.71,0.00017372,2]
[367569460,1750861849322,-460.0,0.00017372,2]
[367569461,1750861849331,-460.13,0.00017372,2]
[367569462,1750861849340,-1549.18,0.00017372,2]
[367569463,1750861849349,-460.0,0.00017372,2]
[367569464,1750861849358,-460.0,0.00017372,2]
[367569465,1750861849367,-460.0,0.00017372,2]
[367569466,1750861849376,-469.55,0.00017372,2]
[367569467,1750861849385,-460.0,0.00017373,2]
[367569468,1750861849395,-460.0,0.00017373,2]
[367569469,1750861849404,-460.0,0.00017373,2]
[367569470,1750861849414,-460.0,0.00017373,2]
[367569471,1750861849423,-460.0,0.00017373,2]
[367569472,1750861849432,-525.49932537,0.00017373,2]
[367569473,1750861849441,-460.0,0.00017373,2]
[367569474,1750861849451,-460.0,0.00017373,2]
[367569475,1750861849460,-699.62,0.00017373,2]
[367569476,1750861849469,-460.0,0.00017373,2]
[367569477,1750861849479,-460.0,0.00017373,2]
[367569478,1750861849490,-460.0,0.00017373,2]
[367569479,1750861849500,-460.0,0.00017373,2]
[367569480,1750861849509,-460.0,0.00017373,2]
[367569481,1750861849518,-460.0,0.00017373,2]
[367569482,1750861849528,-460.0,0.00017373,2]
[367569483,1750861849537,-151.0,0.00017373,2]
[367569484,1750861849546,-151.0,0.00017373,2]
[367569485,1750861849556,-1021.65,0.00017373,2]
[367569486,1750861849565,-460.0,0.00017373,2]
[367569487,1750861849575,-570.43,0.00017373,2]
[367569488,1750861849584,-460.0,0.00017373,2]
[367569489,1750861849594,-1930.32,0.00017373,2]
[367569490,1750861849603,-460.0,0.00017373,2]
[367569491,1750861849613,-460.0,0.00017373,2]
[367569492,1750861849622,-151.0,0.00017373,2]
[367569493,1750861849632,-905.52,0.00017373,2]
[367569494,1750861849642,-638.78,0.00017373,2]
[367569495,1750861849651,-460.0,0.00017373,2]
[367569496,1750861849660,-460.0,0.00017373,2]
[367569497,1750861849670,-207.29663113,0.00017373,2]
[367569498,1750861849678,-460.0,0.00017373,2]
[367569499,1750861849687,-460.0,0.00017373,2]
[367569500,1750861849697,-448.07106247,0.00017373,2]
[367569501,1750861849706,-460.0,0.00017373,2]
[367569502,1750861849715,-460.0,0.00017373,2]
[367569503,1750861849724,-216.00006241,0.00017373,2]
[367569504,1750861849733,-992.29,0.00017373,2]
[367569505,1750861849745,-255.5,0.00017374,2]
[367569506,1750861849754,-460.0,0.00017374,2]
[367569507,1750861849764,-384.32269552,0.00017374,2]
[367569508,1750861849773,-460.0,0.00017374,2]
[367569509,1750861849783,-460.0,0.00017374,2]
[367569510,1750861849793,-586.15280017,0.00017374,2]
[367569511,1750861849804,-460.0,0.00017374,2]
[367569512,1750861849814,-460.0,0.00017374,2]
[367569513,1750861849823,-481.96569241,0.00017374,2]
[367569514,1750861849833,-272.80937363,0.00017374,2]
[367569515,1750861849842,-250.82848943,0.00017374,2]
[367569516,1750861849853,-460.0,0.00017374,2]
[367569517,1750861849862,-460.0,0.00017374,2]
[367569518,1750861849871,-165.68503,0.00017374,2]
[367569519,1750861849882,-165.68503,0.00017374,2]
[367569520,1750861849892,-460.0,0.00017374,2]
[367569521,1750861849902,-460.0,0.00017374,2]
[367569522,1750861849912,-460.0,0.00017374,2]
[367569523,1750861849921,-460.0,0.00017374,2]
[367569524,1750861849931,-707.06,0.00017374,2]
[367569525,1750861849941,-460.0,0.00017374,2]
[367569526,1750861849950,-460.0,0.00017374,2]
[367569527,1750861849959,-460.0,0.00017374,2]
[367569528,1750861849968,-5919.03,0.00017374,2]
[367569529,1750861849977,-646.55,0.00017374,2]
[367569530,1750861849990,-790.7,0.00017374,2]
[367569531,1750861849999,-575.56,0.00017374,2]
[367569532,1750861850008,-460.0,0.00017374,2]
[367569533,1750861850018,-460.0,0.00017374,2]
[367569534,1750861850027,-862.99,0.00017374,2]
[367569535,1750861850036,-2431.62,0.00017374,2]
[367569536,1750861850045,-460.0,0.00017374,2]
[367569537,1750861850055,-898.85,0.00017374,2]
[367569538,1750861850065,-393.07884262,0.00017375,2]
[367569539,1750861850074,-151.0,0.00017375,2]
[367569540,1750861850083,-775.84,0.00017375,2]
[367569541,1750861850092,-487.31,0.00017375,2]
[367569542,1750861850101,-151.0,0.00017375,2]
[367569543,1750861850110,-151.0,0.00017375,2]
[367569544,1750861850120,-151.0,0.00017375,2]
[367569545,1750861850129,-460.0,0.00017375,2]
[367569546,1750861850138,-460.0,0.00017375,2]
[367569547,1750861850148,-151.0,0.00017375,2]
[367569548,1750861850158,-497.45,0.00017375,2]
[367569549,1750861850167,-445.80869005,0.00017375,2]
[367569550,1750861850176,-1224.78,0.00017375,2]
[367569551,1750861850185,-151.0,0.00017375,2]
[367569552,1750861850295,-253.114786,0.00017375,2]
[367569553,1750861850305,-460.0,0.00017375,2]
[367569554,1750861850315,-844.57,0.00017375,2]
[367569555,1750861850324,-460.0,0.00017375,2]
[367569556,1750861850334,-340.29529696,0.00017375,2]
[367569557,1750861850344,-246.36610706,0.00017375,2]
[367569558,1750861850353,-460.0,0.00017375,2]
[367569559,1750861850362,-242.645154,0.00017375,2]
[367569560,1750861850372,-242.645154,0.00017375,2]
[367569561,1750861850381,-531.66,0.00017375,2]
[367569562,1750861850390,-460.0,0.00017375,2]
[367569563,1750861850400,-2452.55,0.00017375,2]
[367569564,1750861850410,-460.0,0.00017375,2]
[367569565,1750861850419,-1591.01,0.00017375,2]
[367569566,1750861850429,-460.0,0.00017375,2]
[367569567,1750861850439,-227.46,0.00017375,2]
[367569568,1750861850448,-460.0,0.00017375,2]
[367569569,1750861850457,-1989.73,0.00017375,2]
[367569570,1750861850467,-460.0,0.00017375,2]
[367569571,1750861850476,-151.0,0.00017375,2]
[367569572,1750861850488,-6847.14,0.00017375,2]
[367569573,1750861850497,-1607.44,0.00017375,2]
[367569574,1750861850507,-460.0,0.00017375,2]
[367569575,1750861850516,-242.522726,0.00017375,2]
[367569576,1750861850525,-1017.64,0.00017375,2]
[367569577,1750861850535,-520.13423288,0.00017375,2]
[367569578,1750861850717,-1169.30576712,0.00017375,2]
[367569579,1750861850726,-1208.83,0.00017375,2]
[367569580,1750861850736,-436.94,0.00017375,2]
[367569581,1750861850745,-460.0,0.00017375,2]
[367569582,1750861850754,-151.0,0.00017376,2]
[367569583,1750861850764,-151.0,0.00017376,2]
[367569584,1750861850774,-151.0,0.00017376,2]
[367569585,1750861850784,-151.0,0.00017376,2]
[367569586,1750861850794,-151.0,0.00017376,2]
[367569587,1750861850807,-1318.414088,0.00017376,2]
[367569588,1750861850816,-53.03656326,0.00017376,2]
[367569589,1750861850828,-451.44754976,0.00017376,2]
[367569590,1750861850840,-813.92997498,0.00017376,2]
[367569591,1750861850850,-500.0,0.00017377,2]
[367569592,1750861850860,-645.96,0.00017377,2]
[367569593,1750861850869,-460.0,0.00017377,2]
[367569594,1750861850878,-460.0,0.00017377,2]
[367569595,1750861850889,-460.0,0.00017377,2]
[367569596,1750861850898,-460.0,0.00017377,2]
[367569597,1750861850908,-460.0,0.00017377,2]
[367569598,1750861850917,-460.0,0.00017377,2]
[367569599,1750861850927,-462.32,0.00017377,2]
[367569600,1750861850936,-460.0,0.00017377,2]
[367569601,1750861850946,-460.0,0.00017377,2]
[367569602,1750861850955,-460.0,0.00017377,2]
[367569603,1750861850965,-377.43223011,0.00017377,2]
[367569604,1750861850974,-460.0,0.00017377,2]
[367569605,1750861850984,-460.0,0.00017377,2]
[367569606,1750861850996,-165.68503,0.00017377,2]
[367569607,1750861851006,-165.68503,0.00017377,2]
[367569608,1750861851016,-460.0,0.00017377,2]
[367569609,1750861851025,-460.0,0.00017377,2]
[367569610,1750861851035,-460.0,0.00017377,2]
[367569611,1750861851045,-460.0,0.00017377,2]
[367569612,1750861851055,-460.0,0.00017377,2]
[367569613,1750861851065,-460.0,0.00017377,2]
[367569614,1750861851074,-393.83,0.00017377,2]
[367569615,1750861851084,-152.021719,0.00017378,2]
[367569616,1750861851093,-151.093005,0.00017378,2]
[367569617,1750861851103,-151.0,0.00017378,2]
[367569618,1750861851112,-395.70083,0.00017378,2]
[367569619,1750861851121,-395.70083,0.00017378,2]
[367569620,1750861851130,-151.0,0.00017378,2]
[367569621,1750861851140,-384.345501,0.00017378,2]
[367569622,1750861851149,-384.345501,0.00017378,2]
[367569623,1750861851159,-151.0,0.00017378,2]
[367569624,1750861851168,-232.133688,0.00017378,2]
[367569625,1750861851177,-232.133688,0.00017378,2]
[367569626,1750861851187,-151.0,0.00017378,2]
[367569627,1750861851197,-151.0,0.00017378,2]
[367569628,1750861851206,-151.0,0.00017378,2]
[367569629,1750861851216,-151.0,0.00017378,2]
[367569630,1750861851224,-198.09666,0.00017378,2]
[367569631,1750861851234,-151.0,0.00017378,2]
[367569632,1750861851244,-153.794092,0.00017379,2]
[367569633,1750861851254,-153.794092,0.00017379,2]
[367569634,1750861851263,-151.0,0.00017379,2]
[367569635,1750861851272,-151.0,0.00017379,2]
[367569636,1750861851281,-159.776707,0.00017379,2]
[367569637,1750861851290,-151.0,0.00017379,2]
[367569638,1750861851299,-151.0,0.00017381,2]
[367569639,1750861851310,-151.0,0.00017381,2]
[367569640,1750861851319,-151.0,0.00017381,2]
[367569641,1750861851329,-6705.43147003,0.00017383,2]
[367569642,1750861851339,-151.0,0.00017392,2]
[367569643,1750861851348,-151.0,0.00017392,2]
[367569644,1750861851358,-242.645154,0.00017392,2]
[367569645,1750861851367,-242.645154,0.00017392,2]
[367569646,1750861851376,-151.0,0.000174,2]
[367569647,1750861851385,-151.0,0.000174,2]
[367569648,1750861851394,-292.96596,0.00017413,2]
[367569649,1750861851403,-151.0,0.00017414,2]
[367569650,1750861851413,-151.0,0.00017416,2]
[367569651,1750861851422,-1318.414088,0.00017416,2]
[367569652,1750861851431,-1318.414088,0.00017416,2]
[367569653,1750861851440,-187.70464,0.00017421,2]
[367569654,1750861851450,-151.0,0.00017421,2]
[367569655,1750861851459,-229.51402,0.00017421,2]
[367569656,1750861851468,-600.0,0.00017421,2]
[367569657,1750861851477,-292.50073679,0.00017421,2]
[367569658,1750861851486,-18.8365493,0.00017453,2]
[367569659,1750861851499,-132.1634507,0.00017453,2]
[367569660,1750861851508,-151.0,0.00017453,2]
[367569661,1750861851518,-5888.0,0.00017453,2]
[367569662,1750861851527,-692.0,0.00017472,2]
[367569663,1750861851537,-500.0,0.00017472,2]
[367569664,1750861851547,-151.0,0.00017472,2]
[367569665,1750861851556,-151.0,0.00017472,2]
[367569666,1750861851565,-151.0,0.00017472,2]
[367569667,1750861851574,-151.0,0.00017472,2]
[367569668,1750861851583,-500.0,0.00017472,2]
[367569669,1750861851593,-180.56206559,0.00017472,2]
[367569670,1750861851602,-151.0,0.00017472,2]
[367569671,1750861851612,-151.0,0.00017472,2]
[367569672,1750861851621,-151.0,0.00017472,2]
[367569673,1750861851631,-151.0,0.00017472,2]
[367569674,1750861851640,-151.0,0.00017472,2]
[367569675,1750861851649,-151.0,0.00017472,2]
[367569676,1750861851658,-151.0,0.00017472,2]
[367569677,1750861851667,-151.31756435,0.00017472,2]
[367569678,1750861851676,-151.0,0.00017472,2]
[367569679,1750861851686,-500.0,0.00017472,2]
[367569680,1750861851696,-151.0,0.00017472,2]
[367569681,1750861851706,-151.0,0.00017472,2]
[367569682,1750861851715,-151.0,0.00017472,2]
[367569683,1750861851725,-500.0,0.00017472,2]
[367569684,1750861851735,-151.0,0.00017472,2]
[367569685,1750861851749,-151.0,0.00017472,2]
[367569686,1750861851759,-151.0,0.00017472,2]
[367569687,1750861851768,-151.0,0.00017472,2]
[367569688,1750861851777,-151.0,0.00017472,2]
[367569689,1750861851787,-151.0,0.00017472,2]
[367569690,1750861851798,-692.0,0.00017499,2]
[367569691,1750861851811,-500.0,0.00017499,2]
[367569692,1750861851820,-151.0,0.00017499,2]
[367569693,1750861851830,-151.0,0.00017499,2]
[367569694,1750861851839,-151.0,0.00017499,2]
[367569695,1750861851850,-151.0,0.00017499,2]
[367569696,1750861851860,-500.0,0.00017499,2]
[367569697,1750861851870,-151.0,0.00017499,2]
[367569698,1750861851879,-151.0,0.00017499,2]
[367569699,1750861851889,-151.0,0.00017499,2]
[367569700,1750861851899,-151.0,0.00017499,2]
[367569701,1750861851910,-151.0,0.00017499,2]
[367569702,1750861851919,-151.0,0.00017499,2]
[367569703,1750861851928,-500.0,0.00017499,2]
[367569704,1750861851938,-151.0,0.00017499,2]
[367569705,1750861851947,-151.0,0.00017499,2]
[367569706,1750861851956,-403.678824,0.00017499,2]
[367569707,1750861851967,-289.12848526,0.00017499,2]
[367569708,1750861851976,-198.0,0.00017499,2]
[367569709,1750861851986,-151.0,0.00017499,2]
[367569710,1750861852001,-700.0,0.000175,3]
[367569711,1750861852010,-151.0,0.000175,2]
[367569712,1750861852019,-151.0,0.000175,2]
[367569713,1750861852028,-692.0,0.00017527,2]
[367569714,1750861852039,-565.16270588,0.00017527,2]
[367569715,1750861852048,-198.0,0.00017527,2]
[367569716,1750861852057,-151.0,0.00017527,2]
[367569717,1750861852067,-158.73949001,0.00017527,2]
[367569718,1750861852076,-151.0,0.00017527,2]
[367569719,1750861852085,-500.0,0.00017527,2]
[367569720,1750861852095,-198.0,0.00017527,2]
[367569721,1750861852104,-198.0,0.00017527,2]
[367569722,1750861852115,-151.0,0.00017527,2]
[367569723,1750861852124,-151.0,0.00017527,2]
[367569724,1750861852134,-151.0,0.00017527,2]
[367569725,1750861852143,-500.0,0.00017527,2]
[367569726,1750861852152,-198.0,0.00017527,2]
[367569727,1750861852161,-198.0,0.00017527,2]
[367569728,1750861852171,-151.0,0.00017528,2]
[367569729,1750861852180,-395.70083,0.00017528,2]
[367569730,1750861852190,-395.70083,0.00017528,2]
[367569731,1750861852304,-232.133688,0.00017528,2]
[367569732,1750861852314,-232.133688,0.00017528,2]
[367569733,1750861852323,-151.0,0.00017528,2]
[367569734,1750861852332,-182.754915,0.00017528,2]
[367569735,1750861852341,-151.0,0.00017528,2]
[367569736,1750861852350,-165.68503,0.00017528,2]
[367569737,1750861852359,-165.68503,0.00017528,2]
[367569738,1750861852368,-1615.17,0.00017545,2]
[367569739,1750861852377,-361.05313495,0.00017546,2]
[367569740,1750861852386,-692.0,0.00017554,2]
[367569741,1750861852395,-198.0,0.00017554,2]
[367569742,1750861852404,-198.05545305,0.00017554,2]
[367569743,1750861852413,-500.0,0.00017554,2]
[367569744,1750861852422,-151.0,0.00017554,2]
[367569745,1750861852431,-151.0,0.00017554,2]
[367569746,1750861852440,-151.0,0.00017554,2]
[367569747,1750861852449,-500.0,0.00017554,2]
[367569748,1750861852458,-692.0,0.00017582,2]
[367569749,1750861852467,-500.0,0.00017582,2]
[367569750,1750861852476,-198.0,0.00017582,2]
[367569751,1750861852485,-246.09323048,0.00017582,2]
[367569752,1750861852497,-500.0,0.00017582,2]
[367569753,1750861852507,-151.0,0.000176,2]
[367569754,1750861852516,-151.0,0.000176,2]
[367569755,1750861852526,-692.0,0.00017609,2]
[367569756,1750861852536,-500.0,0.00017609,2]
[367569757,1750861852546,-500.0,0.00017609,2]
[367569758,1750861852555,-151.0,0.00017609,2]
[367569759,1750861852564,-151.0,0.00017624,2]
[367569760,1750861852574,-308.473625,0.00017624,2]
[367569761,1750861852583,-308.473625,0.00017624,2]
[367569762,1750861852592,-151.0,0.00017624,2]
[367569763,1750861852602,-237.404975,0.00017624,2]
[367569764,1750861852611,-6705.43147003,0.00017624,2]
[367569765,1750861852620,-1797.83653423,0.00017631,2]
[367569766,1750861852630,-692.0,0.00017636,2]
[367569767,1750861852639,-500.0,0.00017636,2]
[367569768,1750861852648,-500.0,0.00017636,2]
[367569769,1750861852657,-460.0,0.00017646,2]
[367569770,1750861852666,-460.0,0.00017646,2]
[367569771,1750861852675,-460.0,0.00017646,2]
[367569772,1750861852684,-2966.93,0.00017646,2]
[367569773,1750861852694,-410.26974302,0.00017646,2]
[367569774,1750861852703,-2654.77,0.00017646,2]
[367569775,1750861852713,-460.0,0.00017646,2]
[367569776,1750861852722,-460.0,0.00017646,2]
[367569777,1750861852731,-1973.41,0.00017646,2]
[367569778,1750861852740,-597.1,0.00017646,2]
[367569779,1750861852750,-1548.17,0.00017646,2]
[367569780,1750861852759,-2257.2,0.00017646,2]
[367569781,1750861852769,-460.0,0.00017646,2]
[367569782,1750861852778,-936.71,0.00017646,2]
[367569783,1750861852788,-460.0,0.00017646,2]
[367569784,1750861852798,-460.13,0.00017646,2]
[367569785,1750861852815,-1549.18,0.00017646,2]
[367569786,1750861852824,-460.0,0.00017646,2]
[367569787,1750861852833,-460.0,0.00017646,2]
[367569788,1750861852843,-460.0,0.00017646,2]
[367569789,1750861852853,-469.55,0.00017646,2]
[367569790,1750861852862,-363.58,0.00017647,2]
[367569791,1750861852872,-460.0,0.00017647,2]
[367569792,1750861852882,-460.0,0.00017647,2]
[367569793,1750861852892,-460.0,0.00017647,2]
[367569794,1750861852902,-460.0,0.00017647,2]
[367569795,1750861852911,-460.0,0.00017647,2]
[367569796,1750861852921,-460.0,0.00017647,2]
[367569797,1750861852930,-699.62,0.00017647,2]
[367569798,1750861852940,-460.0,0.00017647,2]
[367569799,1750861852949,-460.0,0.00017647,2]
[367569800,1750861852959,-460.0,0.00017647,2]
[367569801,1750861852969,-460.0,0.00017647,2]
[367569802,1750861852978,-237.37171201,0.00017647,2]
[367569803,1750861852987,-460.0,0.00017647,2]
[367569804,1750861852998,-460.0,0.00017647,2]
[367569805,1750861853008,-1021.65,0.00017647,2]
[367569806,1750861853018,-460.0,0.00017647,2]
[367569807,1750861853027,-570.43,0.00017647,2]
[367569808,1750861853035,-460.0,0.00017647,2]
[367569809,1750861853045,-1930.32,0.00017647,2]
[367569810,1750861853054,-460.0,0.00017647,2]
[367569811,1750861853063,-460.0,0.00017647,2]
[367569812,1750861853072,-905.52,0.00017647,2]
[367569813,1750861853081,-638.78,0.00017647,2]
[367569814,1750861853091,-460.0,0.00017647,2]
[367569815,1750861853100,-460.0,0.00017647,2]
[367569816,1750861853109,-460.0,0.00017647,2]
[367569817,1750861853118,-460.0,0.00017647,2]
[367569818,1750861853127,-285.26134269,0.00017647,2]